[Event "58th Akiba Rubinstein B 2022"]
[Site "Polanica-Zdroj"]
[Date "2022.08.13"]
[Round "1.1"]
[White "Skiba, Jakub"]
[Black "Chmiel, Marcin"]
[Result "0-1"]
[ECO "B14"]
[WhiteElo "1711"]
[BlackElo "2192"]
[Annotator "TA"]
[PlyCount "72"]
[EventDate "2022.08.13"]
[EventCountry "POL"]
[SourceTitle "playchess.com"]
[Source "ChessBase"]
[SourceQuality "1"]
[TimeControl "40/5400+30:1800+30"]

{[%evp 13,72,0,0,0,8,0,21,-9,-10,-66,-34,-37,-48,-56,-37,-245,-245,-256,-248,-256,-262,-457,-318,-312,-288,-342,-339,-633,-631,-669,-667,-671,-668,-635,-518,-29951,-29946,-6431,-6498,-5593,-4957,-1708,-1650,-29970,-9339,-6187,-6270,-2336,-1833,-2050,-1466,-29995,-29996,-29996,-29997,-29997,-29998,-29998,-29988,-29988,-29989]} 1. e4 {[%emt 0:00:04]} c6 {[%emt 0:06:56][%cal Bc7c6,Bc6d5][%mdl 32]} 2. d4 {[%emt 0:00:22]} d5 {[%emt 0:00:06]} 3. exd5 {[%emt 0:00:30]} cxd5 {[%emt 0:00:06]} 4. c4 {[%emt 0:00:42]} Nf6 {[%emt 0:00:05]} 5. Nc3 {[%emt 0:00:55]} g6 {[%emt 0:00:06]} 6. Bg5 {[%emt 0:04:18]} Bg7 {[%emt 0:01:49]} 7. Bxf6 {[%emt 0:07:54] The main line 7.Bxf6 scores better than 7.Nf3.} Bxf6 {[%emt 0:00:25]} 8. cxd5 {[%emt 0:00:16] B14: Caro-Kann: Panov-Botvinnik Attack with 5...e6 and 5...g6.} O-O {[%emt 0:00:40]} 9. Nge2 {[%emt 0:02:19]} e6 {[%emt 0:03:42] [#]} 10. Qb3 $146 {[%emt 0:05:14] The position is equal.} ({Predecessor:} 10. dxe6 Bxe6 11. d5 Bd7 12. Ng3 Qb6 13. Qd2 Bd4 14. Bc4 Re8+ 15. Kf1 Na6 16. Rd1 {½-½ (41) Dubov,D (2618)-Fressinet,L (2709) Yerevan 2014}) 10... exd5 {[%emt 0:04:12] White must now prevent ...Nc6.} 11. Nxd5 {[%emt 0:02:46]} (11. g3 $1 $11) 11... Nc6 {[%emt 0:05:55][%cal Bb8c6,Bc6e5,Be5g4,Bg4e3,Be3g2][%mdl 32] Threatens to win with ...Qa5+.} 12. Nxf6+ {[%emt 0:02:12]} Qxf6 {[%emt 0:00:06]} 13. d5 $1 {[%emt 0:02:28]} Ne5 {[%emt 0:07:33][%mdl 1024] And now ...Re8 would win. Black has compensation.} 14. Ng3 $2 {[%emt 0:03:14] [#] Now White is beyond hope.} (14. f4 $15 Nd7 15. Qc3) 14... Ng4 $1 $19 {[%emt 0:02:31]} 15. f3 {[%emt 0:06:01]} Re8+ {[%emt 0:01:20]} 16. Be2 {[%emt 0:00:56] [#]} Ne3 {[%emt 0:01:27] aiming for ...Bf5.} 17. Rc1 $2 {[%emt 0:13:26]} (17. Qc3 Qf4 18. Kf2) 17... Nxg2+ {[%emt 0:01:50]} 18. Kf2 {[%emt 0:00:17]} Nf4 {[%emt 0:01:49] Strongly threatening ...Qd4+.} 19. Rcd1 {[%emt 0:06:14] Prevents Qd4+.} Qh4 {[%emt 0:07:13]} 20. Bc4 {[%emt 0:08:54]} (20. Bb5 Re5 21. Qc3 Rxd5 22. Rxd5 Nxd5 23. Qe5) 20... Bf5 {[%emt 0:03:12] ...Rac8 is the strong threat.} 21. d6 {[%emt 0:03:34]} Be6 {[%emt 0:04:07]} 22. Bxe6 {[%emt 0:16:37]} Rxe6 {[%emt 0:00:10]} 23. Rd2 {[%emt 0:00:51] Inhibits Re2+.} Rae8 {[%emt 0:06:10]} 24. d7 {[%emt 0:02:37]} (24. Qd1 $19 Re2+ 25. Rxe2 Rxe2+ 26. Qxe2 Nxe2 27. Kxe2) 24... Re2+ {[%emt 0:02:35]} 25. Rxe2 {[%emt 0:00:09]} Rxe2+ {[%emt 0:00:05]} 26. Kg1 {[%emt 0:00:10]} Re1+ {[%emt 0:13:40]} 27. Kf2 {[%emt 0:00:42]} Rxh1 {[%emt 0:00:10]} 28. d8=Q+ {[%emt 0:00:23]} Qxd8 {[%emt 0:00:00]} 29. Nxh1 {[%emt 0:00:10][%mdl 4096] Endgame KQN-KQN} Qd2+ {[%emt 0:00:09]} 30. Kg3 {[%emt 0:00:21]} g5 {[%emt 0:02:47][%csl Gf4][%cal Rd2g2]} 31. Kg4 {[%emt 0:04:06]} Qxh2 {[%emt 0:00:54] ( -> ...Nh5)} 32. Qxb7 {[%emt 0:01:02]} Qh3+ {[%emt 0:03:33] Black mates.} 33. Kxg5 {[%emt 0:00:07]} Ne6+ {[%emt 0:00:10]} 34. Kf6 {[%emt 0:00:20]} Qh4+ {[%emt 0:00:29]} 35. Ke5 {[%emt 0:00:36]} Qf4+ {[%emt 0:00:12]} 36. Kd5 {[%emt 0:00:20]} Qxf3+ {[%emt 0:00:07] Weighted Error Value: White=1.18/Black=0.43} 0-1

[Event "58th Akiba Rubinstein B 2022"]
[Site "Polanica-Zdroj"]
[Date "2022.08.13"]
[Round "1.2"]
[White "Zerebiec, Maurycy"]
[Black "Wesolek, Krzysztof"]
[Result "1-0"]
[ECO "A18"]
[WhiteElo "1915"]
[BlackElo "1747"]
[Annotator "TA"]
[PlyCount "95"]
[EventDate "2022.08.13"]
[EventCountry "POL"]
[SourceTitle "playchess.com"]
[Source "ChessBase"]
[SourceQuality "1"]
[TimeControl "40/5400+30:1800+30"]

{[%evp 11,95,52,72,37,61,65,55,56,53,42,54,27,34,4,143,87,78,82,78,74,167,166,157,155,168,119,354,338,418,413,408,413,424,408,414,410,405,389,395,320,320,320,317,271,1091,1114,1035,1017,707,362,475,414,662,654,403,223,351,248,754,691,633,588,12832,10983,12834,12835,12832,12832,12838,12839,12839,12837,12837,12837,12843,12843,12844,12844,12845,12845,12848,12845,12849,12849,12850,12850]} 1. c4 {[%emt 0:00:09] Finkel,A} Nf6 {[%emt 0:00:04]} 2. Nc3 {[%emt 0:00:02]} e6 {[%emt 0:01:08]} 3. e4 {[%emt 0:00:01]} d5 {[%emt 0:11:10]} 4. cxd5 {[%emt 0:00:14]} exd5 {[%emt 0:00:07]} 5. e5 {[%emt 0:00:01]} Nfd7 {[%emt 0:03:31]} 6. d4 {[%emt 0:00:27]} Nb6 {[%emt 0:00:55]} 7. f4 {[%emt 0:00:37] A18: English Opening: Flohr-Mikenas System (1 c4 Nf6 2 Nc3 e6 3 e4).} c5 {[%emt 0:01:54]} 8. Nf3 {[%emt 0:00:19]} Nc6 {[%emt 0:00:30]} 9. Be3 {[%emt 0:00:55] White is slightly better.} cxd4 {[%emt 0:03:43]} 10. Nxd4 {[%emt 0:00:18] [#]} Bb4 $146 {[%emt 0:12:42]} ({Predecessor:} 10... Nc4 11. Nxc6 bxc6 12. Bxc4 dxc4 13. Qa4 Rb8 14. Qxc6+ Bd7 15. Qxc4 Rc8 {½-½ (39) Lautier,J (2632)-Nikolic,P (2659) Monte Carlo 2000 CBM 076 [Finkel,A]}) 11. Bd3 {[%emt 0:04:07]} O-O {[%emt 0:04:08]} 12. O-O {[%emt 0:00:20]} Qe7 {[%emt 0:08:44]} (12... Bc5 $11) 13. Nf3 {[%emt 0:05:59] White is much more active. The black rooks are badly placed.} ({Resist} 13. Qh5 g6 14. Qf3 Be6 $16) (13. Qc2 $142) 13... Bc5 {[%emt 0:05:23]} 14. Bxc5 {[%emt 0:01:29]} Qxc5+ {[%emt 0:00:07]} 15. Kh1 {[%emt 0:00:04][%cal Od3h7] Strongly threatening Bxh7+!} f5 {[%emt 0:20:23]} (15... Qe7 $16) 16. exf6 $18 {[%emt 0:02:54]} Rxf6 {[%emt 0:00:09] [#]} 17. Ng5 $1 $36 {[%emt 0:06:44][%mdl 2048] White is on the roll.} h6 {[%emt 0:07:33]} (17... Bf5 $2 18. Bxf5 Rxf5 19. Qh5 Rxg5 20. fxg5 $18) 18. Qh5 {[%emt 0:00:38][%cal Og5e4] aiming for Nge4!} Bd7 $2 {[%emt 0:05:57] [#] A mistake that costs the game.} (18... Qf8 $16) 19. Nge4 $1 {[%emt 0:01:33][%mdl 512]} Qf8 {[%emt 0:02:29]} (19... dxe4 20. Qxc5) 20. Nxf6+ {[%emt 0:00:37]} Qxf6 {[%emt 0:00:02]} 21. Nxd5 {[%emt 0:01:43]} Nxd5 {[%emt 0:00:34]} 22. Qxd5+ {[%emt 0:00:06]} Be6 {[%emt 0:00:09]} 23. Qe4 {[%emt 0:00:07]} Rd8 {[%emt 0:03:28]} 24. Rae1 {[%emt 0:01:57][%cal Ba1e1,Be1e6,Be6e8][%mdl 32]} Bxa2 {[%emt 0:06:05]} 25. Bc4+ {[%emt 0:01:53]} Bxc4 {[%emt 0:00:06]} 26. Qxc4+ {[%emt 0:00:01]} Kh8 {[%emt 0:00:57]} 27. Re6 {[%emt 0:02:51]} Qxb2 {[%emt 0:00:59]} (27... Qd4 28. Qe2 Qd3) 28. Rfe1 {[%emt 0:00:13] Black must now prevent Re8+.} Rf8 {[%emt 0:00:58]} 29. Re8 {[%emt 0:03:33]} Qf6 {[%emt 0:00:02]} 30. Qc5 {[%emt 0:03:55]} Kg8 {[%emt 0:00:42]} 31. Qd5+ {[%emt 0:00:19]} Kh7 {[%emt 0:00:32]} (31... Qf7 $142 32. R1e6 h5) 32. Rxf8 {[%emt 0:01:22]} Qxf8 {[%emt 0:00:02][%mdl 4096] Endgame KQR-KQN} 33. f5 {[%emt 0:00:01]} (33. Qd3+ $142 g6 34. Re6) 33... a5 {[%emt 0:01:15]} (33... Qf6 {keeps fighting.} 34. h3 Qg5) 34. Qd7 {[%emt 0:01:22]} Qb4 $2 {[%emt 0:00:25]} (34... a4 35. Qxb7 Qf6) 35. Qe6 {[%emt 0:01:02] Threatening mate with Qg6+. White is clearly winning.} Qg4 {[%emt 0:00:33] Prevents Qg6+.} 36. f6 {[%emt 0:05:37]} Qxe6 {[%emt 0:00:06]} 37. Rxe6 {[%emt 0:00:01]} gxf6 {[%emt 0:00:10]} 38. Rxf6 {[%emt 0:00:01] KR-KN} Kg7 39. Rd6 {[%emt 0:00:01]} Kf8 {[%emt 0:01:46]} 40. Rxh6 {[%emt 0:00:00]} a4 {[%emt 0:00:00]} 41. g4 {[%emt 0:04:05][%cal Bg2g4,Bg4g5][%mdl 32]} Kg7 {[%emt 0:01:41]} 42. g5 {[%emt 0:00:43]} Na5 {[%emt 0:09:02]} 43. Rb6 {[%emt 0:04:42]} a3 {[%emt 0:00:44]} 44. Rb4 {[%emt 0:00:21]} b6 {[%emt 0:02:43]} 45. Ra4 {[%emt 0:00:29]} Kg6 {[%emt 0:02:15]} 46. h4 {[%emt 0:00:39]} b5 {[%emt 0:02:07]} 47. Rxa5 {[%emt 0:00:14]} b4 {[%emt 0:00:04]} 48. Ra4 {[%emt 0:00:02] Weighted Error Value: White=0.31/Black=0.54} 1-0

[Event "58th Akiba Rubinstein B 2022"]
[Site "Polanica-Zdroj"]
[Date "2022.08.13"]
[Round "1.3"]
[White "Zeissel, Andrzej"]
[Black "Mielczarek, Daniel"]
[Result "0-1"]
[ECO "C10"]
[WhiteElo "1624"]
[BlackElo "1912"]
[Annotator "TA"]
[PlyCount "50"]
[EventDate "2022.08.13"]
[EventCountry "POL"]
[SourceTitle "playchess.com"]
[Source "ChessBase"]
[SourceQuality "1"]
[TimeControl "40/5400+30:1800+30"]

{[%evp 18,50,17,14,22,0,0,0,0,-26,-28,-81,-82,-131,-108,-120,-108,-138,-139,-168,-109,-217,-193,-264,-239,-393,-393,-387,-385,-379,-381,-392,-396,-461,-459]} 1. e4 {[%emt 0:00:23]} e6 {[%emt 0:00:31]} 2. Nc3 {[%emt 0:00:19]} d5 {[%emt 0:00:15]} 3. d4 {[%emt 0:00:05]} dxe4 {[%emt 0:01:03]} 4. Nxe4 {[%emt 0:00:11]} Nd7 {[%emt 0:00:14]} 5. Bd3 {[%emt 0:00:44]} Ngf6 {[%emt 0:00:26]} 6. Nxf6+ {[%emt 0:01:08]} Nxf6 {[%emt 0:01:22]} 7. c3 {[%emt 0:00:11][%cal Bc2c3,Bc3d4][%mdl 32]} c5 {[%emt 0:03:39]} 8. Nf3 {[%emt 0:04:43]} cxd4 {[%emt 0:04:37]} 9. Nxd4 {[%emt 0:00:22]} Bc5 {[%emt 0:00:44]} 10. O-O {[%emt 0:02:43]} Bxd4 {[%emt 0:04:52] C10: French with 3 Nc3: Unusual Black 3rd moves and 3...dxe4.} 11. cxd4 {[%emt 0:01:08]} Bd7 {[%emt 0:01:37]} 12. Bg5 {[%emt 0:06:15][%cal Od4d5]} Bc6 {[%emt 0:02:50] The position is equal.} 13. Bxf6 {[%emt 0:06:30]} Qxf6 {[%emt 0:02:44] [#]} 14. Re1 $146 {[%emt 0:11:52]} (14. d5 $11 Bxd5 15. Qa4+ Bc6 16. Bb5) ({Predecessor:} 14. Be2 Rd8 15. Bf3 Bxf3 16. Qxf3 Qxf3 17. gxf3 Rxd4 18. Rfd1 Rd2 19. Rxd2 {1-0 (19) Gallegos,C (2452)-Bareev,E (2711) Playchess.com INT 2004}) 14... Rd8 $17 {[%emt 0:10:59]} ({Much weaker is} 14... Qxd4 {[#]} 15. Rxe6+ $1 Kf8 16. Re3 $11) 15. Qd2 {[%emt 0:12:12]} (15. Be4 $142) 15... Qxd4 $40 {[%emt 0:09:28][%mdl 128] Black is out for blood.} 16. Rad1 {[%emt 0:02:52]} Qd5 {[%emt 0:07:42][%csl Gc6][%cal Rd5g2]} 17. f4 {[%emt 0:09:31]} g6 {[%emt 0:06:21][%cal Bg7g6,Bg6f5][%mdl 32]} 18. Qf2 {[%emt 0:16:42]} Qa5 {[%emt 0:12:51]} (18... Qxa2 $19 {And now ...0-0 would win.} 19. Be4 Rxd1 20. Bxc6+ bxc6 21. Rxd1 O-O) 19. f5 {[%emt 0:05:45]} (19. a3 $17 {keeps fighting.}) 19... gxf5 $19 {[%emt 0:08:41]} 20. Qh4 {[%emt 0:05:56]} (20. Bf1 $142) 20... Qc5+ {[%emt 0:04:27]} 21. Kh1 $2 {[%emt 0:00:19] [#]} (21. Qf2 Qxf2+ 22. Kxf2) 21... Rxd3 $1 {[%emt 0:04:41]} 22. Rxd3 {[%emt 0:02:11][%csl Gd3][%cal Rh4d8] [#]} Bxg2+ $1 {[%emt 0:00:19][%mdl 512]} 23. Kxg2 {[%emt 0:00:02][%csl Gh4][%cal Rd3d8]} Qc2+ {[%emt 0:00:24]} 24. Kh1 {[%emt 0:00:27][%csl Gd3][%cal Rh4d8]} Qxd3 25. Qa4+ {[%emt 0:03:31]} b5 {[%emt 0:02:04] White did not feel at home in the position after the opening.  Weighted Error Value: White=0.47/Black=0.10 (very precise)} 0-1

[Event "58th Akiba Rubinstein B 2022"]
[Site "Polanica-Zdroj"]
[Date "2022.08.13"]
[Round "1.4"]
[White "Lewandrowski, Tomasz"]
[Black "Smukowski, Bartosz"]
[Result "0-1"]
[ECO "A45"]
[WhiteElo "1902"]
[BlackElo "1696"]
[Annotator "TA"]
[PlyCount "94"]
[EventDate "2022.08.13"]
[EventCountry "POL"]
[SourceTitle "playchess.com"]
[Source "ChessBase"]
[SourceQuality "1"]
[TimeControl "40/5400+30:1800+30"]

{[%evp 9,94,1,0,13,60,3,0,0,22,12,13,19,7,24,25,-28,0,-58,0,0,0,0,0,-47,-47,-42,-33,-40,0,-21,-17,-11,0,-38,-25,-394,-372,-373,-48,-39,-55,-47,-60,-75,-77,-68,-31,-603,-657,-561,-491,-1114,-1020,-1128,-1109,-1201,-1080,-29948,-6633,-29978,-29978,-29956,-7555,-29950,-11558,-12850,-12849,-4627,-4622,-29980,-29981,-29979,-29980,-29992,-29978,-29978,-29979,-29971,-29970,-29984,-29983,-29985,-29986,-29988,-29989,-29989,-29990]} 1. d4 {[%emt 0:00:02]} Nf6 {[%emt 0:00:15]} 2. Nc3 {[%emt 0:00:06]} d5 {[%emt 0:00:13]} 3. Bf4 {[%emt 0:00:07]} Bf5 {[%emt 0:00:12]} 4. e3 {[%emt 0:00:49]} e6 {[%emt 0:03:45]} 5. f3 {[%emt 0:03:18]} h5 {[%emt 0:00:24]} 6. Bd3 {[%emt 0:00:54] D00: 1 d4 d5: Unusual lines.} Bd6 {[%emt 0:03:04]} (6... Bxd3 $11 7. Qxd3 Bd6) 7. Nge2 {[%emt 0:03:19]} (7. Bxd6 $1 $14 Qxd6 8. e4 dxe4 9. fxe4) 7... Bxd3 $11 {[%emt 0:00:54]} 8. Qxd3 {[%emt 0:00:27] [#] The position is equal.} a6 $146 {[%emt 0:00:25]} ({Predecessor:} 8... O-O 9. O-O c5 10. Rad1 Nc6 11. Kh1 Rc8 12. dxc5 Bxc5 13. Bg5 Be7 14. Qd2 Ne5 {½-½ (53) Bettalli,F (2323)-Maung,M (2121) Chess.com INT 2022}) 9. Bg5 {[%emt 0:05:54]} c5 {[%emt 0:11:05]} 10. e4 {[%emt 0:06:50]} cxd4 {[%emt 0:03:54]} 11. Nxd4 {[%emt 0:01:32]} dxe4 {[%emt 0:11:59]} 12. fxe4 {[%emt 0:08:33]} ({White should try} 12. Nxe4 Be7 13. O-O-O) 12... Be5 {[%emt 0:03:13]} 13. O-O-O {[%emt 0:05:26]} ({Better is} 13. Nf3 $1 $11 Bxc3+ 14. Qxc3) 13... Qxd4 {[%emt 0:01:14]} ({Black should play} 13... Qc7 $1 $15) 14. Qxd4 {[%emt 0:00:11]} Bxd4 {[%emt 0:00:06]} 15. Rxd4 {[%emt 0:00:06]} Nc6 {[%emt 0:00:13]} 16. Bxf6 {[%emt 0:01:49]} (16. Rd2 $11) 16... gxf6 $15 {[%emt 0:00:32]} 17. Rd2 {[%emt 0:06:04]} Rd8 {[%emt 0:05:32]} 18. Rhd1 {[%emt 0:00:50]} Ke7 {[%emt 0:03:54]} 19. Na4 {[%emt 0:10:50]} Rxd2 {[%emt 0:03:50]} 20. Rxd2 $11 {[%emt 0:00:02][%mdl 4096] Endgame KRN-KRN} Nb8 {[%emt 0:00:39]} 21. Rd3 {[%emt 0:08:01]} Nd7 {[%emt 0:01:23]} 22. Rc3 $2 {[%emt 0:03:18][%mdl 8192] [#]} (22. Rh3 $11 {and White is okay.}) 22... b5 $1 $19 {[%emt 0:01:55]} 23. Nc5 {[%emt 0:00:58]} Nxc5 {[%emt 0:00:06]} (23... b4 $19 24. Rc4 Rc8 25. Rxb4 Rxc5) 24. Rxc5 {[%emt 0:00:01] KR-KR} Kd6 {[%emt 0:00:14] Prevents Rc7.} 25. b4 {[%emt 0:00:54][%cal Oa2a4]} Rg8 {[%emt 0:03:33]} 26. Rxh5 {[%emt 0:06:59]} Rxg2 {[%emt 0:00:11]} 27. Rh7 {[%emt 0:05:36]} Ke5 {[%emt 0:00:42] Black is more active.} (27... Ke7 $5 {[%cal Rg2g4]} 28. Rh4 Re2 $17) 28. h4 $2 {[%emt 0:00:57][%mdl 8192] White is now going downhill.} (28. Rxf7 $15 Rxh2 29. Ra7) 28... Kxe4 {[%emt 0:00:31]} 29. Rxf7 {[%emt 0:00:11]} f5 {[%emt 0:00:59][%cal Bf6f5,Bf5f4][%mdl 32]} 30. Ra7 {[%emt 0:02:42]} (30. h5 $142 Rh2 31. Rf6) 30... f4 {[%emt 0:01:29]} 31. Rxa6 {[%emt 0:00:13]} e5 {[%emt 0:00:06][%cal Be6e5,Be5e4][%mdl 32] ...f3 is the strong threat.} 32. Kd1 {[%emt 0:01:41]} Rh2 {[%emt 0:00:34] [#] Hoping for ...f3.} 33. a4 {[%emt 0:00:40]} Ke3 {[%emt 0:00:34][%cal Rh2h1]} 34. c4 {[%emt 0:01:38]} bxc4 {[%emt 0:08:34]} 35. b5 {[%emt 0:01:43]} Rxh4 {[%emt 0:00:49]} (35... f3 $142 36. Rf6 f2 37. h5 Rh4 38. Rxf2 Kxf2 39. Kc2 e4 40. b6 Rxh5 41. b7 Rh8 42. a5 e3 43. a6 e2 44. a7 e1=Q 45. b8=Q Qe2+ 46. Kc3 Qd3+ 47. Kb4 Qb1+ 48. Kc3 Rh3+ 49. Kd4 Rh4+ 50. Kc3 Rh3+ 51. Kd4 Rh4+ 52. Kc3 Rh3+) 36. Re6 {[%emt 0:01:39]} e4 {[%emt 0:00:28]} 37. b6 {[%emt 0:00:05]} Kd3 {[%emt 0:01:10][%cal Rh4h1]} 38. Rd6+ {[%emt 0:00:15]} Kc3 {[%emt 0:00:09] ( -> ...f3)} 39. Re6 {[%emt 0:03:02]} f3 {[%emt 0:01:48][%cal Rh4h1] Black mates.} 40. Ke1 {[%emt 0:00:00]} Kd3 {[%emt 0:00:00]} 41. b7 {[%emt 0:01:35]} Rh1+ {[%emt 0:01:28]} 42. Kf2 {[%emt 0:00:14]} Rh2+ {[%emt 0:00:29]} 43. Kg3 {[%emt 0:05:49]} Rg2+ {[%emt 0:00:16]} 44. Kh3 {[%emt 0:00:21]} Rb2 {[%emt 0:00:14]} 45. Re7 {[%emt 0:00:19]} f2 {[%emt 0:02:33]} 46. Kg2 {[%emt 0:00:25]} e3 {[%emt 0:00:48]} 47. a5 {[%emt 0:00:13]} Ke2 {[%emt 0:00:09] Weighted Error Value: White=1.19/Black=0.34} 0-1

[Event "58th Akiba Rubinstein B 2022"]
[Site "Polanica-Zdroj"]
[Date "2022.08.13"]
[Round "1.5"]
[White "Turek, Michal"]
[Black "Owoc, Jakub"]
[Result "1-0"]
[ECO "B11"]
[WhiteElo "1681"]
[BlackElo "1756"]
[Annotator "NA RC COMBH"]
[PlyCount "149"]
[EventDate "2022.08.13"]
[EventCountry "POL"]
[SourceTitle "playchess.com"]
[Source "ChessBase"]
[SourceQuality "1"]
[TimeControl "40/5400+30:1800+30"]

1. e4 {[%emt 0:00:03]} c6 {[%emt 0:00:07]} 2. Nc3 {[%emt 0:00:08]} d5 {[%emt 0:00:07]} 3. Nf3 {[%emt 0:00:10]} Bg4 {[%emt 0:00:05]} 4. Be2 {[%emt 0:00:24]} dxe4 {[%emt 0:00:06]} 5. Nxe4 {[%emt 0:00:08]} Nd7 {[%emt 0:00:03]} 6. d4 {[%emt 0:00:56]} Ngf6 {[%emt 0:00:19]} 7. Nxf6+ {[%emt 0:00:36]} Nxf6 {[%emt 0:00:22]} 8. O-O {[%emt 0:01:21]} e6 {[%emt 0:00:39]} 9. c4 {[%emt 0:01:13]} Bd6 {[%emt 0:02:23]} 10. Be3 {[%emt 0:06:27]} Qc7 {[%emt 0:02:11]} 11. h3 {[%emt 0:00:59]} Bh5 {[%emt 0:00:11]} 12. Rc1 {[%emt 0:04:17]} O-O {[%emt 0:00:51]} 13. Qc2 {[%emt 0:07:55]} Bg6 {[%emt 0:03:43]} 14. Bd3 {[%emt 0:01:11]} Bxd3 {[%emt 0:00:23]} 15. Qxd3 {[%emt 0:00:03]} Rfe8 {[%emt 0:00:37]} 16. Qc2 {[%emt 0:05:33]} c5 {[%emt 0:02:04]} 17. Rfd1 {[%emt 0:01:43]} Rad8 {[%emt 0:02:04]} 18. a3 {[%emt 0:11:29]} a6 {[%emt 0:05:13]} 19. Rd2 {[%emt 0:08:10]} cxd4 20. Nxd4 {[%emt 0:01:44]} Bf4 {[%emt 0:02:06]} 21. Bxf4 {[%emt 0:08:14]} Qxf4 {[%emt 0:00:07]} 22. Rcd1 {[%emt 0:01:50]} Rc8 {[%emt 0:04:13]} 23. g3 {[%emt 0:10:51]} Qe5 {[%emt 0:02:29]} 24. b4 {[%emt 0:02:52]} h5 {[%emt 0:02:36]} 25. Qb3 {[%emt 0:05:23]} Qc7 {[%emt 0:10:03]} 26. c5 {[%emt 0:01:46]} Red8 {[%emt 0:00:54]} 27. Qf3 {[%emt 0:03:00]} Rd5 {[%emt 0:00:18]} 28. Nb3 {[%emt 0:02:11]} Rf5 {[%emt 0:00:22]} 29. Qe2 {[%emt 0:00:40]} Re8 {[%emt 0:03:26]} 30. Rd6 {[%emt 0:00:58]} e5 {[%emt 0:00:47]} 31. Qe3 {[%emt 0:02:07]} e4 {[%emt 0:01:23]} 32. Nd4 {[%emt 0:02:27]} Rfe5 {[%emt 0:00:39]} 33. Ne2 {[%emt 0:00:40]} Qc8 {[%emt 0:00:56]} 34. Kg2 {[%emt 0:00:35]} Qf5 {[%emt 0:00:13]} 35. Nd4 {[%emt 0:01:26]} Qg6 {[%emt 0:00:57]} 36. c6 {[%emt 0:01:35]} Nd5 {[%emt 0:06:29]} 37. Rxg6 {[%emt 0:02:27]} Nxe3+ {[%emt 0:00:04]} 38. fxe3 {[%emt 0:00:02]} fxg6 {[%emt 0:00:08]} 39. cxb7 {[%emt 0:00:34]} R5e7 {[%emt 0:03:08]} 40. b8=Q {[%emt 0:00:00]} Rxb8 {[%emt 0:00:00]} 41. Nc6 {[%emt 0:00:42]} Rbb7 {[%emt 0:00:51]} 42. Nxe7+ {[%emt 0:00:30]} Rxe7 {[%emt 0:00:04]} 43. Rd6 {[%emt 0:00:29]} Ra7 {[%emt 0:00:04]} 44. Re6 {[%emt 0:00:29]} a5 {[%emt 0:00:03]} 45. Rxe4 {[%emt 0:02:15]} axb4 {[%emt 0:00:04]} 46. axb4 {[%emt 0:00:06]} Ra2+ {[%emt 0:00:08]} 47. Kf3 {[%emt 0:00:32]} Kf7 {[%emt 0:00:36]} 48. h4 {[%emt 0:00:58]} Kf6 {[%emt 0:00:06]} 49. Rc4 {[%emt 0:01:23]} Rb2 {[%emt 0:00:10]} 50. Rc6+ {[%emt 0:00:49]} Kf5 {[%emt 0:02:43]} 51. e4+ {[%emt 0:01:00]} Ke5 {[%emt 0:00:02]} 52. Rc5+ {[%emt 0:00:41]} Kd6 {[%emt 0:01:28]} 53. Rg5 {[%emt 0:00:21]} Rxb4 {[%emt 0:00:05]} 54. Rxg6+ {[%emt 0:00:08]} Ke5 {[%emt 0:00:04]} 55. Rg5+ {[%emt 0:00:30]} Kf6 {[%emt 0:00:05]} 56. Rxh5 {[%emt 0:00:05]} Rb1 {[%emt 0:00:21]} 57. Rf5+ {[%emt 0:00:59]} Ke6 {[%emt 0:02:38]} 58. Kg4 {[%emt 0:00:54]} Re1 {[%emt 0:01:09]} 59. e5 {[%emt 0:01:03]} Re4+ {[%emt 0:00:09]} 60. Kg5 {[%emt 0:00:20]} Re3 {[%emt 0:00:58]} 61. g4 {[%emt 0:00:35]} Re1 {[%emt 0:00:34]} 62. Kg6 {[%emt 0:00:49]} Re4 {[%emt 0:00:28]} 63. Rg5 {[%emt 0:00:10]} Rf4 {[%emt 0:00:03]} 64. Kxg7 {[%emt 0:00:15]} Rf7+ {[%emt 0:00:05]} 65. Kg8 {[%emt 0:00:53]} Ra7 {[%emt 0:00:13]} 66. h5 {[%emt 0:00:42]} Ra8+ {[%emt 0:00:07]} 67. Kh7 {[%emt 0:00:04]} Ra7+ {[%emt 0:00:05]} 68. Rg7 {[%emt 0:00:06]} Ra8 {[%emt 0:00:09]} 69. g5 {[%emt 0:00:38]} Kxe5 {[%emt 0:00:05]} 70. g6 {[%emt 0:00:07]} Ke6 {[%emt 0:00:12]} 71. Rb7 {[%emt 0:00:30]} Kf6 {[%emt 0:00:18]} 72. g7 {[%emt 0:00:14]} Ra5 {[%emt 0:00:04]} 73. Rb6+ {[%emt 0:00:06]} Ke7 {[%emt 0:00:05]} 74. g8=Q {[%emt 0:00:09]} Rxh5+ {[%emt 0:00:05]} 75. Kg6 {[%emt 0:00:11]} 1-0

[Event "58th Akiba Rubinstein B 2022"]
[Site "Polanica-Zdroj"]
[Date "2022.08.13"]
[Round "1.6"]
[White "Twardowski, Hubert"]
[Black "Bartlomowicz, Jakub"]
[Result "1-0"]
[ECO "C48"]
[WhiteElo "1849"]
[BlackElo "1922"]
[Annotator "TA"]
[PlyCount "61"]
[EventDate "2022.08.13"]
[EventCountry "POL"]
[SourceTitle "playchess.com"]
[Source "ChessBase"]
[SourceQuality "1"]
[TimeControl "40/5400+30:1800+30"]

{[%evp 9,61,16,24,20,10,8,19,8,27,0,0,10,23,31,13,22,32,-32,-40,-45,-46,-36,-24,-55,-49,-76,-63,-61,-54,-66,-64,-137,-116,-128,-134,-189,0,0,649,693,939,929,885,806,29990,29991,29991,29992,29995,29996,29996,29997,29997,29998]} 1. e4 e5 2. Nf3 Nc6 3. Nc3 Nf6 4. Bb5 {[%cal Bf1b5,Bb5a4,Ba4b3,Bb3a2][%mdl 32]} Bd6 5. d3 a6 6. Ba4 {C48: Four Knights: 4 Bb5, replies other than 4...Bb4.} O-O 7. O-O h6 {7...h6 is better than 7...b5.} (7... b5 $5 8. Bb3 Na5 $11) 8. a3 {The position is equal.} Re8 (8... b5 $5 9. Bb3 Be7 $14) 9. Ne2 b5 10. Bb3 {[#]} Na5 $146 ({Predecessor:} 10... Bf8 11. Ng3 d5 12. exd5 Nxd5 13. Re1 Nf6 14. a4 Bb7 15. c3 Qd6 16. axb5 axb5 17. Rxa8 Rxa8 {1-0 (49) Nitin,S (2329)-Aleksandrov,A (2592) Mumbai 2020}) 11. Ba2 {[%cal Oc1h6]} c5 12. Nh4 Bf8 13. Nf5 ({White should try} 13. Ng6 $14) 13... d5 $15 14. Neg3 dxe4 15. dxe4 Nc6 16. Ne3 c4 17. b3 cxb3 18. Bxb3 Nd4 19. Bb2 Bb7 {Inhibits Bd5.} 20. Bxd4 (20. f3 $15) 20... exd4 $17 ({Don't play} 20... Qxd4 $6 21. Qf3 $11) 21. Nef5 Nxe4 ({Not} 21... Bxe4 22. a4 $15) 22. Qd3 (22. Qf3 $17 Qc7 23. Qh5) 22... Bc5 $2 {A strong pair of Bishops.} (22... Qb6 $19 {And now ...Rad8 would win.} 23. Qxd4 Qc7) 23. Rae1 {[%cal Rg3e4]} Nf6 {[%mdl 8192] [#]} (23... Qf6 $11) 24. Nxh6+ $1 $18 {[%mdl 512]} gxh6 (24... Kf8 25. Nxf7) 25. Qg6+ Kh8 26. Rxe8+ Nxe8 27. Qxh6+ {White mates.} Kg8 28. Qg6+ Kh8 29. Qh5+ Kg7 30. Qxf7+ Kh6 31. Nf5+ {Weighted Error Value: White=0.19 (very precise) /Black=0.68} 1-0